[Event "7th Sharjah Masters 2024"]
[Site "Sharjah"]
[Date "2024.05.20"]
[Round "7.11"]
[White "Sankalp Gupta"]
[Black "Deac, Bogdan-Daniel"]
[Result "1-0"]
[ECO "C02"]
[WhiteElo "2532"]
[BlackElo "2693"]
[Annotator "TA"]
[PlyCount "107"]
[EventDate "2024.05.13"]
[EventType "swiss"]
[EventCountry "UAE"]
[SourceTitle "playchess.com"]
[Source "ChessBase"]
[SourceQuality "1"]
[TimeControl "5400+30"]

{[%evp 47,107,-48,-49,-60,-89,-74,-93,-98,-100,-85,0,0,0,-58,-41,-50,-40,-47,-33,-56,0,-6,0,0,25,13,5,16,41,56,60,65,60,54,83,60,67,0,72,0,34,42,47,61,63,15,72,13,392,391,1091,1080,1147,1081,29976,29976,29998,29979,29979,0,29987,29984]} 1. e4 {[%emt 0:01:41]} c5 {[%emt 0:01:49]} 2. c3 {[%emt 0:00:03]} e6 {[%emt 0:07:40]} 3. d4 {[%emt 0:04:20]} d5 {[%emt 0:00:03]} 4. e5 {[%emt 0:00:57]} Nc6 {[%emt 0:00:12]} 5. Nf3 {[%emt 0:00:06]} Bd7 {[%emt 0:00:19]} 6. Be2 {[%emt 0:01:03]} f6 {[%emt 0:01:07]} 7. O-O {[%emt 0:02:01]} fxe5 {[%emt 0:00:25]} 8. Nxe5 {[%emt 0:00:06]} Nxe5 {[%emt 0:00:03]} 9. dxe5 {[%emt 0:00:04]} Qc7 {[%emt 0:00:11]} 10. Re1 {[%emt 0:00:27] Nowadays more popular than 10.c4.} O-O-O {[%emt 0:00:07]} 11. Bf1 {[%emt 0:03:46]} Ne7 {[%emt 0:04:23] C02: French: Advance Variation.} 12. a4 {[%emt 0:04:59]} c4 {[%emt 0:01:53]} 13. b3 $146 {[%emt 0:06:46]} ({Predecessor:} 13. Na3 Nf5 14. b3 cxb3 15. Qxb3 Bc5 16. Ra2 Kb8 17. Nc2 Rc8 18. Nb4 Ka8 19. Nd3 {½-½ Walton,J (2287)-Schroeder,C (2263) FICGS W-ch st1 gN 01 email 2021 (1)}) 13... cxb3 {[%emt 0:20:05]} 14. Qxb3 {[%emt 0:26:02]} Nc6 {[%emt 0:04:20]} 15. Be3 {[%emt 0:00:31]} Na5 {[%emt 0:01:17]} 16. Qb2 {[%emt 0:01:12]} Bc5 {[%emt 0:02:01]} 17. Na3 {[%emt 0:00:30]} Bxe3 {[%emt 0:08:14]} 18. Rxe3 {[%emt 0:00:03]} Kb8 {[%emt 0:00:37]} 19. Nb5 {[%emt 0:02:19]} Bxb5 {[%emt 0:01:30]} 20. axb5 {[%emt 0:03:31]} Rhf8 {[%emt 0:07:35]} 21. Qb4 {[%emt 0:02:26]} b6 {[%emt 0:12:59]} 22. g3 {[%emt 0:01:04]} g5 {[%emt 0:00:39]} 23. Qg4 {[%emt 0:06:21]} Qe7 {[%emt 0:09:07]} 24. Re2 {[%emt 0:06:47]} Rc8 {[%emt 0:02:50]} 25. Bh3 {[%emt 0:02:08]} Rfe8 $1 {[%emt 0:00:49]} 26. Re3 {[%emt 0:00:27]} Nc4 {[%emt 0:01:11]} 27. Re2 {[%emt 0:00:27]} Rc5 {[%emt 0:02:03]} 28. Bf1 {[%emt 0:09:57]} h6 {[%emt 0:05:39]} (28... Rxb5 $17 29. Rea2 a5 (29... Nxe5 30. Qe2 $16)) 29. Rea2 $1 $11 {[%emt 0:04:47]} Na5 {[%emt 0:00:10]} (29... Rxb5 $2 30. Bxc4 dxc4 31. Rxa7 (31. Qxc4 Rc5 $11) 31... Qxa7 32. Rxa7 Kxa7 33. Qxc4 $18) (29... Nxe5 30. Qe2 Nc4 31. Rxa7 Qxa7 32. Rxa7 Kxa7 33. Qh5 $14) 30. Ra3 {[%emt 0:00:01]} (30. Rxa5 $11 bxa5 31. Rxa5) 30... Qc7 {[%emt 0:03:28]} 31. Qh5 {[%emt 0:07:34]} Rh8 {[%emt 0:00:08]} 32. Re1 {[%emt 0:00:12]} Qe7 {[%emt 0:01:03]} 33. Re3 {[%emt 0:01:10]} Rcc8 {[%emt 0:01:49]} (33... Nc4 $1 $15 34. Bxc4 dxc4) 34. Ra4 {[%emt 0:01:26]} Rcf8 {[%emt 0:00:37]} 35. h4 {[%emt 0:00:13]} Rh7 {[%emt 0:00:42]} 36. Rf3 {[%emt 0:01:03]} Rxf3 $1 {[%emt 0:00:23]} 37. Qxf3 {[%emt 0:00:02]} Rf7 {[%emt 0:00:41]} 38. Qe3 {[%emt 0:00:09]} Rg7 {[%emt 0:00:46]} 39. hxg5 {[%emt 0:00:09]} hxg5 {[%emt 0:00:26]} 40. Rg4 {[%emt 0:00:23]} Rg6 {[%emt 0:00:34]} 41. Bd3 {[%emt 0:00:35]} Rg7 {[%emt 0:00:19]} 42. Bf1 {[%emt 0:01:02]} Rg6 $1 {[%emt 0:00:20]} 43. Qf3 {[%emt 0:00:52]} (43. Be2 $16) 43... Rh6 {[%emt 0:00:37]} 44. Bd3 {[%emt 0:00:17]} Qg7 {[%emt 0:00:44]} 45. Qe3 {[%emt 0:00:21]} Rh5 {[%emt 0:00:22]} 46. Be2 {[%emt 0:01:08]} Qh7 {[%emt 0:00:40]} (46... Qe7 $11) 47. Qf3 {[%emt 0:00:11]} (47. Rxg5 $16 Rh1+ 48. Kg2) 47... Kc7 $2 {[%emt 0:00:30][%mdl 8192]} (47... Qh8 $1 $11) 48. c4 $18 {[%emt 0:01:15]} (48. Bd3 Qg8 49. Qf6 Nb7) 48... Nb3 $2 {[%emt 0:00:22] [#]} (48... Qb1+ 49. Bd1 Nxc4) 49. cxd5 $1 $18 {[%emt 0:00:41]} ({Weaker is} 49. Qxb3 Rh1+ 50. Kg2 Rh2+ 51. Kg1 Rh1+ 52. Kg2 Rh2+ 53. Kg1 Rh1+ $11) 49... exd5 {[%emt 0:00:36]} 50. Qxd5 {[%emt 0:01:19]} ({Inferior is} 50. Qxb3 Rh1+ 51. Kg2 Rh2+ 52. Kf1 Rh1+ 53. Kg2 Rh2+ 54. Kg1 Rh1+ 55. Kg2 $11) 50... Nc5 {[%emt 0:00:32]} 51. Rd4 {[%emt 0:00:08]} g4 {[%emt 0:00:06]} 52. Qd8+ {[%emt 0:00:06]} Kb7 {[%emt 0:00:03]} 53. Qd5+ $2 {[%emt 0:00:05]} (53. Bxg4 {mates} Rh1+ 54. Kg2 Rh2+ 55. Kf1 Qb1+ 56. Rd1 Rh1+ 57. Kg2 Qe4+ 58. f3 (58. Bf3 Qxf3+ 59. Kxf3 Rxd1 60. Qxd1 a6 61. Qd5+ Kc7 62. e6 Nxe6 63. bxa6 Nd4+ 64. Qxd4 b5)) 53... Kb8 $2 {[%emt 0:00:05][%mdl 8192]} (53... Kc7 $11 54. Qc6+ Kb8 55. Rd8#) 54. Bxg4 {[%emt 0:00:10]} 1-0

[Event "7th Sharjah Masters 2024"]
[Site "Sharjah"]
[Date "2024.05.20"]
[Round "7.12"]
[White "Vokhidov, Shamsiddin"]
[Black "Nihal Sarin"]
[Result "1-0"]
[ECO "B06"]
[WhiteElo "2592"]
[BlackElo "2680"]
[Annotator "RC"]
[PlyCount "69"]
[EventDate "2024.05.13"]
[EventType "swiss"]
[EventCountry "UAE"]
[SourceTitle "playchess.com"]
[Source "ChessBase"]
[SourceQuality "1"]
[TimeControl "5400+30"]

1. e4 {[%emt 1:31:00]} g6 {[%emt 1:31:00]} 2. d4 {[%emt 0:00:30]} Bg7 {[%emt 0:00:30]} 3. Nc3 {[%emt 0:00:30]} d6 {[%emt 0:00:30]} 4. Be3 {[%emt 0:00:30]} a6 {[%emt 0:00:30]} 5. h4 {[%emt 0:00:30]} h6 {[%emt 0:00:30]} 6. Qd2 {[%emt 0:00:30]} Nd7 {[%emt 0:00:30]} 7. a4 {[%emt 0:00:30]} Ngf6 {[%emt 0:00:30]} 8. f3 {[%emt 0:00:30]} c5 {[%emt 0:00:30]} 9. dxc5 {[%emt 0:00:30]} dxc5 {[%emt 0:00:30]} 10. Nge2 {[%emt 0:00:30]} Qa5 {[%emt 0:00:30]} 11. Nc1 {[%emt 0:00:30]} Qc7 {[%emt 0:00:30]} 12. a5 {[%emt 0:00:30]} Ne5 {[%emt 0:00:30]} 13. Nb3 {[%emt 0:00:30]} Be6 {[%emt 0:00:30]} 14. Nxc5 {[%emt 0:00:30]} Bc4 {[%emt 0:00:30]} 15. Nd3 {[%emt 0:00:30]} Nc6 {[%emt 0:00:30]} 16. Bb6 {[%emt 0:00:30]} Qg3+ {[%emt 0:00:30]} 17. Qf2 {[%emt 0:00:30]} Nh5 {[%emt 0:00:30]} 18. Rh3 {[%emt 0:00:30]} Qd6 {[%emt 0:00:30]} 19. Qc5 {[%emt 0:00:30]} Bxd3 {[%emt 0:00:30]} 20. Qxd6 {[%emt 0:00:30]} exd6 {[%emt 0:00:30]} 21. cxd3 {[%emt 0:00:30]} Rc8 {[%emt 0:00:30]} 22. Kd2 {[%emt 0:00:30]} Be5 {[%emt 0:00:30]} 23. Ra4 {[%emt 0:00:30]} Nf4 {[%emt 0:00:30]} 24. Rh1 {[%emt 0:00:30]} Ne6 {[%emt 0:00:30]} 25. Be2 {[%emt 0:00:30]} h5 {[%emt 0:00:30]} 26. Rc4 {[%emt 0:00:30]} Kd7 {[%emt 0:00:30]} 27. Bd1 {[%emt 0:00:30]} Bf4+ {[%emt 0:00:30]} 28. Ke2 {[%emt 0:00:30]} Be5 {[%emt 0:00:30]} 29. Ba4 {[%emt 0:00:30]} Nf4+ {[%emt 0:00:30]} 30. Kd2 {[%emt 0:00:30]} Nxg2 {[%emt 0:00:30]} 31. Nd5 {[%emt 0:00:30]} Ke6 {[%emt 0:00:30]} 32. d4 {[%emt 0:00:30]} Bf6 {[%emt 0:00:30]} 33. Ke2 {[%emt 0:00:30]} g5 {[%emt 0:00:30]} 34. hxg5 {[%emt 0:00:30]} Bxg5 {[%emt 0:00:30]} 35. Rg1 {[%emt 0:00:30]} 1-0

[Event "7th Sharjah Masters 2024"]
[Site "Sharjah"]
[Date "2024.05.20"]
[Round "7.13"]
[White "Blohberger, Felix"]
[Black "Ter-Sahakyan, Samvel"]
[Result "1/2-1/2"]
[ECO "E36"]
[WhiteElo "2506"]
[BlackElo "2652"]
[Annotator "TA"]
[PlyCount "88"]
[EventDate "2024.05.13"]
[EventType "swiss"]
[EventCountry "UAE"]
[SourceTitle "playchess.com"]
[Source "ChessBase"]
[SourceQuality "1"]
[TimeControl "5400+30"]

{[%evp 10,88,0,0,19,16,22,23,26,5,24,10,22,17,21,7,18,0,0,7,2,0,0,0,20,10,8,5,10,0,0,0,0,0,18,15,21,0,0,0,0,0,0,0,0,0,0,0,0,0,0,0,0,0,0,0,0,0,0,0,0,0,0,0,0,0,0,0,0,0,1,1,1,0,0,0,0,0,0,0,3]} 1. d4 {[%emt 0:00:04]} Nf6 {[%emt 0:01:05]} 2. c4 {[%emt 0:00:07]} e6 {[%emt 0:02:28]} 3. Nc3 {[%emt 0:00:09]} Bb4 {[%emt 0:00:43]} 4. Qc2 {[%emt 0:00:07]} d5 {[%emt 0:02:17]} 5. a3 {[%emt 0:01:51]} Bxc3+ {[%emt 0:03:04]} 6. Qxc3 {[%emt 0:00:06]} h6 {[%emt 0:05:35] Inhibits Bg5.} 7. Nf3 {[%emt 0:01:38]} O-O {[%emt 0:01:22]} 8. e3 {[%emt 0:00:36]} b6 {[%emt 0:04:23] White has an edge.} 9. b3 {[%emt 0:01:24]} Bb7 {[%emt 0:01:50]} 10. Be2 {[%emt 0:00:23]} Nbd7 {[%emt 0:00:18] The position is equal.} 11. Bb2 {[%emt 0:01:42]} Rc8 {[%emt 0:03:28]} 12. O-O {[%emt 0:00:34]} c5 {[%emt 0:01:02]} 13. Rac1 {[%emt 1:28:19]} Ne4 {[%emt 0:21:08]} 14. Qd3 {[%emt 0:00:00]} Qe7 {[%emt 0:04:27]} 15. Rfd1 {[%emt 0:00:00]} Rfd8 {[%emt 0:01:15]} 16. h3 {[%emt 0:00:00]} Nd6 {[%emt 0:09:55][%cal Be4d6,Bd6f5,Bf5h4][%mdl 32]} 17. cxd5 {[%emt 0:00:00]} Bxd5 {[%emt 0:02:34]} 18. Nd2 {[%emt 0:00:00]} Bc6 {[%emt 0:06:44]} 19. Qb1 {[%emt 0:00:00]} cxd4 {[%emt 0:06:45]} 20. Bxd4 {[%emt 0:00:00]} Nf5 {[%emt 0:00:28][%cal Of5d4]} 21. Bb2 {[%emt 0:00:00]} Nh4 {[%emt 0:01:23]} (21... Nc5 $5) 22. g3 {[%emt 0:00:00]} Ng6 {[%emt 0:01:28]} 23. Bf3 {[%emt 0:00:00] A strong pair of Bishops.} Nde5 {[%emt 0:04:10]} 24. Bxc6 {[%emt 0:00:00]} Rxc6 {[%emt 0:01:44]} 25. Rxc6 {[%emt 0:00:00]} Nxc6 {[%emt 0:00:03]} 26. Nf3 {[%emt 0:00:00]} Rxd1+ {[%emt 0:02:23]} 27. Qxd1 {[%emt 0:00:00]} Nf8 {[%emt 0:01:03]} 28. Qd3 {[%emt 0:00:00]} Qd7 {[%emt 0:01:18]} 29. Qxd7 {[%emt 0:00:00]} Nxd7 $11 {[%emt 0:00:01][%mdl 4096] Endgame. KBN-KNN} 30. b4 {[%emt 0:01:00]} f6 {[%emt 0:00:17]} 31. Kf1 {[%emt 0:01:10]} Kf7 {[%emt 0:00:21]} 32. Ke2 {[%emt 0:00:10]} e5 {[%emt 0:00:18]} 33. e4 {[%emt 0:00:27]} Nd8 {[%emt 0:04:11]} 34. Kd3 {[%emt 0:00:16]} Nb7 {[%emt 0:00:26]} 35. Bc1 {[%emt 0:02:42]} Nd6 {[%emt 0:02:23]} 36. g4 {[%emt 0:00:16]} b5 {[%emt 0:02:14]} 37. Be3 {[%emt 0:00:43]} a6 {[%emt 0:00:04]} 38. Nd2 {[%emt 0:00:20]} Ke6 {[%emt 0:00:26]} 39. h4 {[%emt 0:02:03]} Kf7 {[%emt 0:01:18]} 40. h5 {[%emt 0:00:08]} Ke8 {[%emt 0:00:09]} 41. f3 {[%emt 0:00:18]} Kd8 {[%emt 0:00:14]} 42. Kc3 {[%emt 0:00:43]} Ke8 {[%emt 0:00:38]} 43. Kd3 {[%emt 0:00:07]} Kd8 {[%emt 0:00:03]} 44. Kc3 {[%emt 0:00:04]} Ke8 {[%emt 0:00:03] An interesting draw.   Weighted Error Value: White=0.03 (flawless) /Black=0.03 (flawless) .  OK:         	White=18    	Black=21} 1/2-1/2

[Event "7th Sharjah Masters 2024"]
[Site "Sharjah"]
[Date "2024.05.20"]
[Round "7.14"]
[White "Nguyen, Thai Dai Van"]
[Black "Yuffa, Daniil"]
[Result "1-0"]
[ECO "B10"]
[WhiteElo "2650"]
[BlackElo "2617"]
[Annotator "TA"]
[PlyCount "123"]
[EventDate "2024.05.13"]
[EventType "swiss"]
[EventCountry "UAE"]
[SourceTitle "playchess.com"]
[Source "ChessBase"]
[SourceQuality "1"]
[TimeControl "5400+30"]

{[%evp 9,123,-4,15,3,8,-12,22,0,0,-8,25,0,37,47,49,43,37,35,69,55,58,52,64,61,61,48,62,63,61,60,56,61,48,55,66,70,68,50,60,64,62,55,59,59,61,62,72,65,72,57,64,49,43,0,62,0,33,25,25,16,45,53,47,47,46,8,8,8,31,8,12,8,8,8,8,8,8,8,8,8,8,8,8,8,2463,2394,2179,588,29964,29964,29943,29943,29966,29967,29968,29969,29969,29970,29973,29974,29974,29975,29975,29975,29978,29975,29974,29975,29974,29976,29976,29977,29977,29978,29977,29978]} 1. e4 {[%emt 0:00:03]} c6 {[%emt 0:00:07]} 2. Nf3 {[%emt 0:00:07]} d5 {[%emt 0:00:06]} 3. d3 {[%emt 0:00:06]} dxe4 {[%emt 0:01:45]} 4. dxe4 {[%emt 0:00:06]} Qxd1+ {[%emt 0:00:06]} 5. Kxd1 {[%emt 0:00:03]} Nf6 {[%emt 0:00:25]} 6. Nbd2 {[%emt 0:00:11]} g6 {[%emt 0:04:54]} 7. a4 {[%emt 0:04:02]} b6 {[%emt 0:06:54]} 8. Ne5 {[%emt 0:23:32] The position is equal.} Bg7 {[%emt 0:04:38][%cal Of6e4]} 9. Nd3 {[%emt 0:00:07]} O-O {[%emt 0:02:08]} 10. f3 {[%emt 0:01:12]} Na6 {[%emt 0:18:00][%cal Bb8a6,Ba6c7,Bc7e6,Be6c5][%mdl 32]} 11. c3 {[%emt 0:03:25]} Ne8 {[%emt 0:00:23]} 12. Kc2 {[%emt 0:00:42]} Nd6 {[%emt 0:00:14]} 13. Be2 {[%emt 0:02:56]} e5 {[%emt 0:06:06]} 14. b3 {[%emt 0:02:14]} f5 {[%emt 0:02:20]} 15. Nf2 {[%emt 0:06:02]} Nc7 {[%emt 0:01:35]} 16. Nc4 {[%emt 0:06:55]} Nxc4 {[%emt 0:03:56]} 17. Bxc4+ {[%emt 0:02:19]} Be6 {[%emt 0:00:22]} 18. Bxe6+ {[%emt 0:00:06]} Nxe6 {[%emt 0:00:05]} 19. Re1 {[%emt 0:00:17]} Rad8 {[%emt 0:08:02]} 20. Nd3 {[%emt 0:02:12]} fxe4 {[%emt 0:04:02]} 21. Rxe4 {[%emt 0:00:59]} Rxd3 {[%emt 0:00:41]} 22. Kxd3 {[%emt 0:00:11] [#] Be3 is the strong threat.} Nc5+ {[%emt 0:00:04]} 23. Ke2 $1 {[%emt 0:00:07]} Nxe4 {[%emt 0:00:25]} 24. fxe4 $14 {[%emt 0:00:05][%mdl 4096] Endgame. KRB-KRB} Rb8 {[%emt 0:02:31]} 25. Be3 {[%emt 0:02:07]} Bf6 {[%emt 0:14:42]} 26. b4 {[%emt 0:06:16]} Kf7 {[%emt 0:00:26]} 27. a5 {[%emt 0:00:34]} Ke6 {[%emt 0:00:27]} 28. axb6 {[%emt 0:05:10]} axb6 {[%emt 0:00:05]} 29. Ra6 {[%emt 0:02:16]} Bd8 {[%emt 0:00:15]} 30. Ra7 {[%emt 0:00:07] White is more active.} Be7 {[%emt 0:01:17]} 31. Ra6 {[%emt 0:10:32]} Bd8 {[%emt 0:00:06]} 32. Ra7 {[%emt 0:00:30] Prevents Rb7.} Be7 {[%emt 0:00:06]} 33. g3 {[%emt 0:04:38]} b5 {[%emt 0:02:32]} 34. h4 {[%emt 0:00:04]} Rd8 {[%emt 0:04:28]} 35. Bc5 {[%emt 0:05:20]} Rd7 {[%emt 0:04:25]} 36. Ra6 {[%emt 0:00:01]} Rc7 {[%emt 0:09:52]} (36... Bxc5 37. bxc5 Rc7 38. Kd3 $18) 37. Ra8 {[%emt 0:00:12]} Bxc5 {[%emt 0:00:00]} 38. bxc5 $11 {[%emt 0:00:01] KR-KR} Rb7 {[%emt 0:00:00]} 39. Re8+ {[%emt 0:02:09]} Kd7 {[%emt 0:00:00]} 40. Rxe5 {[%emt 0:01:30]} Ra7 {[%emt 0:00:00]} 41. h5 {[%emt 0:02:01]} Ra3 {[%emt 0:00:00]} 42. hxg6 {[%emt 0:01:06]} hxg6 {[%emt 0:00:00]} 43. Kd2 $1 {[%emt 0:00:39]} b4 {[%emt 0:00:00]} 44. cxb4 {[%emt 0:00:05]} Rxg3 {[%emt 0:00:00]} 45. Ke2 {[%emt 0:03:07]} Rb3 {[%emt 0:00:00]} 46. Rg5 {[%emt 0:00:12]} Ke6 $2 {[%emt 0:00:35][%mdl 8192] A mistake that costs the game.} (46... Rxb4 $11 47. Kd3 Rb5) 47. Rxg6+ $18 {[%emt 0:00:17]} Ke5 {[%emt 0:00:02]} 48. Rxc6 {[%emt 0:00:24]} Rxb4 {[%emt 0:00:06] [#]} 49. Kd3 {[%emt 0:01:43] White mates.} Rd4+ {[%emt 0:00:34]} 50. Kc3 {[%emt 0:00:03]} Rxe4 {[%emt 0:00:06]} 51. Rd6 {[%emt 0:00:04]} Rh4 {[%emt 0:00:17]} 52. Kb3 {[%emt 0:01:29]} Rg4 {[%emt 0:02:20]} 53. Rd8 {[%emt 0:00:57]} Ke6 {[%emt 0:03:06]} 54. c6 {[%emt 0:00:28][%cal Bc5c6,Bc6c7][%mdl 32]} Rg7 {[%emt 0:00:12]} 55. Kb4 {[%emt 0:00:48]} Ra7 {[%emt 0:00:27]} 56. Kc5 {[%emt 0:00:51]} Ke7 {[%emt 0:00:09]} 57. Rd1 {[%emt 0:01:16]} Ra2 {[%emt 0:00:09]} 58. c7 {[%emt 0:00:17]} Rc2+ {[%emt 0:00:04]} 59. Kb6 {[%emt 0:00:03]} Rb2+ {[%emt 0:00:05]} 60. Kc6 {[%emt 0:00:04]} Rc2+ {[%emt 0:00:02]} 61. Kb7 {[%emt 0:00:06]} Rb2+ {[%emt 0:00:02]} 62. Kc8 {[%emt 0:00:07] Weighted Error Value: White=0.06 (flawless) /Black=0.13 (very precise) .  Loses game:     	---       	Black=1      Inaccurate:     	White=2     	Black=5      OK:         	White=14    	Black=26     Best:        	White=1     	Black=3      Strong:       	White=2     	---} 1-0

[Event "7th Sharjah Masters 2024"]
[Site "Sharjah"]
[Date "2024.05.20"]
[Round "7.15"]
[White "Mendonca, Leon Luke"]
[Black "Kuybokarov, Temur"]
[Result "1-0"]
[ECO "C50"]
[WhiteElo "2640"]
[BlackElo "2602"]
[Annotator "TA"]
[PlyCount "67"]
[EventDate "2024.05.13"]
[EventType "swiss"]
[EventCountry "UAE"]
[SourceTitle "playchess.com"]
[Source "ChessBase"]
[SourceQuality "1"]
[TimeControl "5400+30"]

{[%evp 9,67,25,54,17,24,27,26,23,32,31,41,-10,-14,-7,-12,-15,-22,-21,-20,-51,0,0,0,0,13,17,18,28,0,0,12,0,0,0,66,81,468,0,185,189,186,0,0,0,0,0,0,0,199,157,458,444,427,189,921,917,819,704,6187,5304]} 1. e4 {[%emt 0:02:30]} e5 {[%emt 0:00:12]} 2. Nf3 {[%emt 0:00:05]} Nc6 {[%emt 0:00:11]} 3. Bc4 {[%emt 0:00:07]} Bc5 {[%emt 0:00:19]} 4. d3 {[%emt 0:00:30]} d6 {[%emt 0:00:33]} 5. c3 {[%emt 0:00:26]} Qf6 {[%emt 0:02:48]} 6. a4 {[%emt 0:10:33]} a6 {[%emt 0:05:19]} 7. b4 {[%emt 0:01:05]} Ba7 {[%emt 0:04:11]} 8. O-O {[%emt 0:06:17] White has an edge.} Nge7 {[%emt 0:04:39]} 9. Bg5 {[%emt 0:16:10]} Qg6 {[%emt 0:00:18][%cal Oc8h3]} 10. Nbd2 {[%emt 0:01:04] [#]} ({White should play} 10. Be3 $14) 10... Bh3 $1 $11 {[%emt 0:13:10]} 11. gxh3 {[%emt 0:04:43] Hoping for Kh1.} h6 {[%emt 0:01:52]} 12. h4 {[%emt 0:07:38][%cal Oh4h5] Black must now prevent h5!} hxg5 {[%emt 0:00:30]} 13. Nxg5 {[%emt 0:00:25]} Nd8 {[%emt 0:04:48][%cal Of7f6] ...f6! would now be deadly.} (13... d5 14. exd5 O-O-O (14... Rxh4 15. Ndf3 $18) 15. Kh1 (15. dxc6 Rxh4 16. cxb7+ Kb8 $17) 15... Nxd5 16. Qf3 Rxh4 17. Nxf7 (17. Qxf7 $2 Rxh2+ 18. Kxh2 Rh8+ 19. Nh3 Qxf7 $19)) 14. Kh1 $1 {[%emt 0:00:23]} Rxh4 {[%emt 0:06:02]} (14... c6 $15) 15. Rg1 {[%emt 0:02:19]} Qf6 {[%emt 0:07:47]} (15... Bxf2 $2 16. Rg2 $18) 16. Ndf3 {[%emt 0:01:35]} Rh5 {[%emt 0:02:00]} 17. d4 {[%emt 0:05:52]} Ng6 $1 {[%emt 0:06:11]} 18. Rg3 {[%emt 0:09:10]} Nf4 {[%emt 0:07:34]} 19. Qd2 {[%emt 0:09:50]} Kf8 {[%emt 0:07:37]} 20. dxe5 {[%emt 0:01:17]} dxe5 {[%emt 0:00:12]} 21. Rd1 {[%emt 0:00:32]} Qd6 {[%emt 0:04:18]} 22. Qc1 $1 $14 {[%emt 0:08:49] White is more active.} (22. Qxd6+ cxd6 23. Rxd6 Ke7 $11 (23... Bxf2 24. Nxf7 Bxg3 25. Rxd8+ Rxd8 26. Nxd8 $19) (23... f6 24. Rd7 $17)) 22... Qe7 {[%emt 0:02:06][%mdl 8192] [#]} (22... Qf6 $16 {is tougher.}) 23. Rg4 $2 {[%emt 0:00:21]} (23. Rd7 $1 $18 {[%cal Rd7e7]} Qe8 (23... Qxd7 $2 24. Nxe5 Qd6 25. Ngxf7 $18) 24. Qd2 (24. Bxf7 Nxf7 25. Rxf7+ Kg8 $18) (24. Rxc7 Bxf2 25. Rg4 Bb6 $18)) 23... Qf6 {[%emt 0:03:49]} (23... b5 $1 $11 24. axb5 axb5 25. Bxb5 Qf6) 24. Rd7 $18 {[%emt 0:03:11][%csl LRc7,LRf7]} Nh3 {[%emt 0:02:26]} 25. Kg2 {[%emt 0:01:08]} (25. Bxf7 $18 Nxf2+ (25... Rxg5 $2 26. Nxg5 Nxg5 27. Qxg5 $18) 26. Kg2 Nxf7 (26... Rxg5 $2 27. Nxg5 Nxf7 28. Nh7+ Ke8 29. Nxf6+ $18) 27. Rxf7+ Qxf7 28. Nxf7 (28. Nxe5 $2 Qa2 $19) 28... Nxg4 29. N7xe5 Ne3+ (29... Nxe5 $2 30. Nxe5 Kg8 31. Ng4 $18) 30. Kg3) 25... Nf4+ $11 {[%emt 0:03:44]} 26. Kf1 {[%emt 0:00:58]} (26. Kh1 Nh3 27. Bxf7 g6 $18 (27... Nxf2+ 28. Kg2 $16) (27... Rxg5 $2 28. Nxg5 Nxg5 29. Qxg5 $18)) 26... Nh3 {[%emt 0:00:54][%cal Oh5g5] ...Rxg5! is the strong threat.} 27. Kg2 {[%emt 0:04:38] Chess con chili.} (27. Bxf7 $2 Rxg5 $19) 27... Nf4+ $1 {[%emt 0:00:52]} 28. Kh1 $2 {[%emt 0:01:20]} (28. Kf1 $11 Nh3 29. Kg2 (29. Bxf7 $2 Rxg5 $19)) 28... Nh3 $1 $18 {[%emt 0:01:34]} 29. Rg3 {[%emt 0:00:53]} Bxf2 $2 {[%emt 0:04:03]} (29... Nxg5 $16 {is more resistant.} 30. Nxg5 Bxf2) 30. Rxh3 {[%emt 0:00:03]} ({Less strong is} 30. Bxf7 Nxf7 31. Rxf7+ (31. Nxh3 $2 {perishes.} Bxg3 32. Kg2 Bxh2 $19) 31... Qxf7 32. Nxf7 (32. Nxh3 $2 {loses.} Bxg3 33. Nfg5 Bf4 $19) 32... Bxg3 $16) 30... Rxh3 {[%emt 0:00:16]} 31. Kg2 {[%emt 0:00:38]} (31. Qd1 $142) 31... Qh6 $2 {[%emt 0:02:24]} (31... Ke8 32. Nxh3 Kxd7) 32. Qd2 {[%emt 0:00:58] White is clearly winning.} Bd4 {[%emt 0:01:45]} 33. cxd4 {[%emt 0:00:47][%cal Bc3d4,Bd4e5][%mdl 32]} Qh5 {[%emt 0:01:43]} 34. dxe5 {[%emt 0:00:24] Weighted Error Value: White=0.42/Black=0.49.  Loses game:     	---       	Black=3      Missed win:     	White=2     	---        Mistake:       	White=3     	Black=3      OK:         	White=8     	Black=6      Best:        	White=2     	Black=4      Strong:       	White=2     	Black=3      Brilliant:      	---       	Black=1} 1-0